Cogmind - Beta 9.1 @@@ ROGUE MODE // 2019.11.03 @ 05:29:22 Player: MrPainting Result: Self-destructed Performance ------------- Evolutions (3) 1500 Regions Visited (8) 1600 Robots Destroyed (107) 535 Value Destroyed (2733) 2733 Prototype IDs (4) 80 Alien Tech Used (0) 0 Bonus (1553) 1553 TOTAL SCORE: 8001 Bonus ------- High Alert Combat Kills 553 Entered Garrisons 200 Used RIF Installer 500 Aligned with FarCom 300 Cogmind --------- Core Integrity 518/700 Matter 46/300 Energy 290/290 System Corruption 0% Temperature Cool (0) Location -7/Factory Parts ------- Power (1) Improved Deuterium Engine Propulsion (4) Improved Aluminum Leg Carbon-fiber Leg Utility (6) Lightpack 2.0 Enhanced Optical Array Advanced Targeting Computer Weapon (2) Gauss Rifle Inventory (24) Micro Nuclear Core Improved Flight Unit Heat Shielding Cryofiber Web Improved Heat Sink Improved Cooling System Humpback Compact Battery (300) Compact Matter Pod (150) Advanced Signal Interpreter Target Analyzer Transmission Jammer Improved ECM Suite Improved Propulsion Shielding Improved Utility Shielding Reactive Plating Medium Insulated Plating Lightning Gun Lightning Gun Gauss Rifle Gauss Rifle Remote Datajack Peak State ------------ Power Improved Deuterium Engine Propulsion Improved Aluminum Leg Carbon-fiber Leg Carbon-fiber Leg Improved Carbon-fiber Leg Utility Lightpack 2.0 Enhanced Optical Array Advanced Terrain Scanner Improved ECM Suite Hardened Medium Armor Plating Weapon Gauss Rifle Gauss Rifle Inventory Improved Deuterium Engine Micro Nuclear Core Carbon-fiber Leg Heat Shielding Cryofiber Web Improved Heat Sink Improved Cooling System Humpback Compact Battery Compact Matter Pod Advanced Signal Interpreter Advanced Targeting Computer Transmission Jammer Improved Propulsion Shielding Improved Utility Shielding Reactive Plating Medium Insulated Plating Lightning Gun Lightning Gun Gauss Rifle Gauss Rifle Remote Datajack [Rating: 64] Favorites ----------- Power Improved Deuterium Engine Engine Improved Deuterium Engine Power Core Light Nuclear Core Propulsion Carbon-fiber Leg Treads Advanced Treads Leg Carbon-fiber Leg Wheel Armored Wheel Hover Unit Aerolev Unit Utility Lightpack 2.0 Device Transmission Jammer Storage Lightpack 2.0 Processor Advanced Visual Processing Unit Protection Hardened Medium Armor Plating Weapon Gauss Rifle Energy Gun Lightning Gun Ballistic Gun Gauss Rifle Ballistic Cannon Flak Cannon Launcher Rocket Launcher Build | -11 -10 -10 -10 -9 -8 -8 -8 -7 ------- Run | Scr Mat Min Exi Min Mat Gar Mat Fac Slots Evolved 6 | . . . . . 4 . . 2 Power . | . . . . . . . . . Propulsion 2 | . . . . . 2 . . . Utility 4 | . . . . . 2 . . 2 Weapon . | . . . . . . . . . Parts Attached 77 | 2 12 1 1 2 26 17 10 6 Power 6 | . 2 1 . . 1 . 1 1 Engine 5 | . 2 . . . 1 . 1 1 Core 1 | . . 1 . . . . . . Reactor . | . . . . . . . . . Propulsion 21 | . 4 . . . 8 4 4 1 Treads 4 | . . . . . 4 . . . Leg 10 | . 2 . . . . 3 4 1 Wheel 4 | . 2 . . . 2 . . . Hover 3 | . . . . . 2 1 . . Flight . | . . . . . . . . . Utility 21 | . 3 . 1 . 7 2 4 4 Device 4 | . . . . . 1 . 1 2 Storage 6 | . 1 . 1 . 4 . . . Processor 5 | . 2 . . . . . 1 2 Hackware . | . . . . . . . . . Protection 6 | . . . . . 2 2 2 . Artifact . | . . . . . . . . . Weapon 29 | 2 3 . . 2 10 11 1 . Energy Gun 4 | . . . . . 1 3 . . Energy Cannon . | . . . . . . . . . Ballistic Gun 13 | 2 2 . . . 4 4 1 . Ballistic Cannon 1 | . . . . . 1 . . . Launcher 11 | . 1 . . 2 4 4 . . Special Weapon . | . . . . . . . . . Impact Weapon . | . . . . . . . . . Slashing Weapon . | . . . . . . . . . Piercing Weapon . | . . . . . . . . . Special Melee Weapon . | . . . . . . . . . Unidentified Prototypes 4 | . . . 1 . 3 . . . Parts Lost 15 | . 1 . . . 1 6 1 6 Power 2 | . 1 . . . . . . 1 Propulsion 6 | . . . . . . 3 1 2 Utility 2 | . . . . . . . . 2 Weapon 5 | . . . . . 1 3 . 1 Highest Loss Streak 6 | . 1 . . . 1 6 1 6 Average Slot Usage (%) 87 | . 91 99 91 85 83 86 88 86 Engine 5 | . 10 9 . . . 9 9 7 Core 4 | . . 3 14 14 8 . . . Treads 7 | . . . . . 13 13 4 . Leg 13 | . 19 . . . . 14 30 28 Wheel 9 | . 7 28 28 28 15 . . . Hover 1 | . . . . . 3 5 . . Device 2 | . . . . . 2 . 5 8 Storage 12 | . 13 14 14 14 12 18 9 7 Processor 4 | . 12 14 6 . . . 8 11 Protection 5 | . . . . . 10 9 3 6 Energy Gun 1 | . . . . . . 5 . . Ballistic Gun 15 | . 24 28 28 12 10 10 18 14 Launcher 3 | . 3 . . 15 6 2 . . Naked Turns . | . . . . . . . . . Heaviest Build 69 | 3 13 15 16 18 63 69 65 34 Greatest Support 62 | 3 24 24 24 24 62 62 58 61 Greatest Overweight (x) 3 | . 2 . . . 1 3 1 . Average Overweight (x) . | . . . . . . 1 . . Largest Inventory Capacity 32 | 4 6 6 24 24 32 32 32 24 Average Capacity 24 | 4 5 6 15 24 26 32 24 24 Most Carried 32 | 4 6 6 15 18 32 32 32 24 Average Carried 22 | 2 3 6 8 16 23 31 23 22 Final Capacity 32 | 4 6 6 24 24 32 32 24 24 Final Carried 32 | 4 6 6 15 18 32 32 23 23 Class Distribution -------------------- 78% | Hauler-Mutant 11% | Mutant 9% | Hauler-Skirmisher Dominant Class ---------------- Mutant | -10/Materials Mutant | -10/Mines Hauler-Mutant | -10/Exiles Hauler-Mutant | -9/Mines Hauler-Mutant | -8/Materials Hauler-Mutant | -8/Garrison Hauler-Mutant | -8/Materials Hauler-Skirmisher | -7/Factory Resources | -11 -10 -10 -10 -9 -8 -8 -8 -7 ----------- Run | Scr Mat Min Exi Min Mat Gar Mat Fac Matter Collected 2671 | 220 38 154 124 127 910 403 635 60 Remotely . | . . . . . . . . . Salvage Created 2711 | . 57 75 . 139 1097 427 681 235 Parts 173 | . 7 8 . 11 79 21 39 8 Haulers Intercepted 8 | . . . . . 4 . 4 . Recyclers Shooed 3 | . . . . . 2 . 1 . Parts Field Recycled . | . . . . . . . . . Retrieved Matter . | . . . . . . . . . Parts Self-Destructed . | . . . . . . . . . Prevented . | . . . . . . . . . Kills | -11 -10 -10 -10 -9 -8 -8 -8 -7 ------- Run | Scr Mat Min Exi Min Mat Gar Mat Fac Combat Hostiles Destroyed 73 | . 3 2 . 8 28 13 7 12 Guns 39 | . 2 2 . . 9 7 7 12 AOE 34 | . 1 . . 8 19 6 . . Classes Destroyed 13 | . 2 1 . . 7 1 . 2 Worker 7 | . . . . . 3 . 4 . Builder 4 | . . . . . 4 . . . Tunneler 1 | . . . . . 1 . . . Hauler 8 | . . . . . 4 . 4 . Recycler 2 | . . . . . 1 . 1 . Operator 2 | . . . . . 2 . . . Watcher 10 | . 2 . . . 5 . 3 . Swarmer 26 | . 3 . . 4 9 4 3 3 Grunt 27 | . . 2 . 4 15 6 . . Sentry 8 | . . . . . 4 . 4 . Demolisher 1 | . . . . . . . . 1 Hunter 4 | . . . . . . 3 . 1 Assembled 7 | . . . . . . . . 7 Best Kill Streak 9 | . 3 2 . 4 9 6 6 6 Combat Bots Only 6 | . 3 2 . 4 5 6 3 6 Max Kills in Single Turn 5 | . 2 1 . 3 5 2 2 2 Gunslinging 1 | . . . . . . . . 1 Exploded 3 | . 1 . . 3 3 2 . . Melee . | . . . . . . . . . Uniques/NPCs Destroyed . | . . . . . . . . . Combat | -11 -10 -10 -10 -9 -8 -8 -8 -7 -------- Run | Scr Mat Min Exi Min Mat Gar Mat Fac Damage Taken 3563 | . 168 75 . 27 878 1036 246 1133 Core 519 | . 34 . . 8 80 155 60 182 Absorbed by Shields 11 | . . . . . . 11 . . Core Remaining (%) 76 | 100 . . . 83 . . 46 . Volleys Fired 197 | . 8 6 . 5 60 41 50 27 Largest 2 | . 2 2 . 2 2 2 2 2 Hottest 83 | . 50 46 . 66 72 83 56 56 Shots Fired 388 | . 16 12 . 10 118 79 100 53 Gun 333 | . 12 12 . . 85 71 100 53 Cannon . | . . . . . . . . . Launcher 55 | . 4 . . 10 33 8 . . Special . | . . . . . . . . . Kinetic 316 | . 12 12 . . 85 54 100 53 Thermal . | . . . . . . . . . Explosive 55 | . 4 . . 10 33 8 . . Electromagnetic 17 | . . . . . . 17 . . Robot Hit Streak 11 | . 4 5 . 4 11 9 4 6 Robot Miss Streak 6 | . 2 4 . 2 4 4 6 3 Penetration Max 1 | . . . . . 1 . 1 1 Secondary Targets 6 | . . . . . 1 . 1 4 Max Gunslinging Chain 1 | . . . . . 1 . 1 1 Shots Hit Robots 205 | . 9 6 . 4 73 41 41 31 Core Hits 165 | . 6 5 . 11 80 22 23 18 Critical Hits 6 | . 1 . . . 1 1 1 2 Critical Kills 2 | . 1 . . . . . 1 . Critical Parts Destroyed 4 | . . . . . 1 1 . 2 Melee Attacks . | . . . . . . . . . Impact . | . . . . . . . . . Slashing . | . . . . . . . . . Piercing . | . . . . . . . . . Sneak Attacks . | . . . . . . . . . Combat Hostiles . | . . . . . . . . . Follow-up Attacks . | . . . . . . . . . Damage Inflicted 7768 | . 195 83 . 630 3718 1315 1085 742 Guns 3849 | . 91 83 . . 1169 801 963 742 Cannons . | . . . . . . . . . Explosions 3919 | . 104 . . 630 2549 514 122 . Melee . | . . . . . . . . . Ramming . | . . . . . . . . . Kinetic 3702 | . 91 83 . . 1169 654 963 742 Thermal 32 | . . . . . . 32 . . Explosive 3887 | . 104 . . 630 2549 482 122 . Electromagnetic 147 | . . . . . . 147 . . Impact . | . . . . . . . . . Slashing . | . . . . . . . . . Piercing . | . . . . . . . . . Highest Corruption . | . . . . . . . . . Average Corruption . | . . . . . . . . . Corruption Purged . | . . . . . . . . . Overload Shots . | . . . . . . . . . Overflow Damage 110 | . 7 . . 19 20 . 64 . Projectiles . | . . . . . . . . . Explosions 110 | . 7 . . 19 20 . 64 . Melee . | . . . . . . . . . Knockbacks . | . . . . . . . . . Impact . | . . . . . . . . . Kinetic . | . . . . . . . . . Secondary . | . . . . . . . . . Self-Inflicted Damage 353 | . 56 . . . 185 . 112 . Shots 8 | . 2 . . . 5 . 1 . Rammed . | . . . . . . . . . Targets Rammed . | . . . . . . . . . Kicked . | . . . . . . . . . Crushed . | . . . . . . . . . Highest Temperature 168 | . . 4 . 42 88 168 3 . Average Temperature 38 | . . 4 . 15 28 50 3 . Received Heat Transfer 669 | . . 45 . . 351 255 18 . Siege Activations . | . . . . . . . . . Robots Corrupted . | . . . . . . . . . Combat Hostiles . | . . . . . . . . . Parts Fried 1 | . . . . . . 1 . . Impact Corruptions . | . . . . . . . . . Robots Melted . | . . . . . . . . . Combat Hostiles . | . . . . . . . . . Parts Melted . | . . . . . . . . . Heat Transferred 50 | . . . . . . 50 . . Parts Sabotaged . | . . . . . . . . . Parts Stolen . | . . . . . . . . . Parts Stripped . | . . . . . . . . . Power Chain Reactions 1 | . . . . . . 1 . . Missiles Intercepted . | . . . . . . . . . Alert | -11 -10 -10 -10 -9 -8 -8 -8 -7 ------- Run | Scr Mat Min Exi Min Mat Gar Mat Fac Peak Influence 1129 | . 104 90 . 185 889 1129 808 413 Average Influence 544 | . 45 57 . 48 509 932 626 317 Maximum Alert Level 4 | . . . . . 3 4 3 2 Low Security (%) 21 | . . . . . . . . . Level 1 12 | . . . . . . . . . Level 2 33 | . . . . . . . . . Level 3 28 | . . . . . . . . . Level 4 4 | . . . . . . . . . Level 5 . | . . . . . . . . . High Security . | . . . . . . . . . Max Security . | . . . . . . . . . Squads Dispatched 4 | . . . . . 3 . . 1 Investigation . | . . . . . . . . . Extermination . | . . . . . . . . . Reinforcement 2 | . . . . . 1 . . 1 Assault . | . . . . . . . . . Garrison 2 | . . . . . 2 . . . Intercept . | . . . . . . . . . Construction Impeded 1 | . . . . . . . . 1 Haulers Reinforced . | . . . . . . . . . Stealth | -11 -10 -10 -10 -9 -8 -8 -8 -7 --------- Run | Scr Mat Min Exi Min Mat Gar Mat Fac Distress Signals 2 | . . . . . 1 . . 1 Communications Jammed . | . . . . . . . . . Distress Signals . | . . . . . . . . . Times Spotted 118 | . 5 2 . 6 37 17 19 32 Peak Tracking Total 10 | . 3 2 . 4 6 8 3 10 Tactical Retreats 10 | . . . . 1 1 5 . 3 Traps | -11 -10 -10 -10 -9 -8 -8 -8 -7 ------- Run | Scr Mat Min Exi Min Mat Gar Mat Fac Traps Triggered 7 | . . . . . . 6 . 1 Indirectly . | . . . . . . . . . Trap Hack Attempts . | . . . . . . . . . Triggered . | . . . . . . . . . Disarmed . | . . . . . . . . . Reprogrammed . | . . . . . . . . . Reused . | . . . . . . . . . Traps Extracted . | . . . . . . . . . Installed . | . . . . . . . . . Triggered . | . . . . . . . . . Machines | -11 -10 -10 -10 -9 -8 -8 -8 -7 ---------- Run | Scr Mat Min Exi Min Mat Gar Mat Fac Machines Disabled 23 | . . . . 4 9 1 8 1 Max in Single Turn 2 | . . . . 2 2 1 2 1 Machines Sabotaged . | . . . . . . . . . Garrisons Compromised . | . . . . . . . . . Overloaded Fab Kills . | . . . . . . . . . Fab Network Shutdowns . | . . . . . . . . . Hacking | -11 -10 -10 -10 -9 -8 -8 -8 -7 --------- Run | Scr Mat Min Exi Min Mat Gar Mat Fac Machines Accessed 8 | . 1 . . . 2 . 4 1 Terminals 5 | . . . . . . . 4 1 Fabricators . | . . . . . . . . . Repair Stations . | . . . . . . . . . Recycling Units 1 | . 1 . . . . . . . Scanalyzers 1 | . . . . . 1 . . . Garrison Access 1 | . . . . . 1 . . . Total Hacks 21 | . 2 . . . 3 . 13 3 Successful 12 | . 1 . . . 3 . 5 3 Failed 9 | . 1 . . . . . 8 . Catastrophic . | . . . . . . . . . Database Lockouts . | . . . . . . . . . Manual 14 | . . . 1 . . . 11 2 Terminals 16 | . . . . . . . 13 3 Fabricators . | . . . . . . . . . Repair Stations . | . . . . . . . . . Recycling Units 2 | . 2 . . . . . . . Scanalyzers 2 | . . . . . 2 . . . Garrison Access 1 | . . . . . 1 . . . Terminal Hacks 4 | . . . . . . . 2 2 Branch Access Points 1 | . . . . . . . 1 . Terminal Index 1 | . . . . . . . . 1 Alert Level 1 | . . . . . . . 1 . Locate Traps 1 | . . . . . . . . 1 Fabricator Hacks . | . . . . . . . . . Repair Station Hacks . | . . . . . . . . . Recycling Unit Hacks 1 | . 1 . . . . . . . Retrieve Components 1 | . 1 . . . . . . . Scanalyzer 2 | . . . . . 2 . . . Insert Component 1 | . . . . . 1 . . . Analyze 1 | . . . . . 1 . . . Garrison Access Hacks 1 | . . . . . 1 . . . Unlock Access 1 | . . . . . 1 . . . Unauthorized Hacks 14 | . . . . . . . 12 2 Terminals 4 | . . . . . . . 3 1 Botnet 4 | . . . . . . . 3 1 Fabricators . | . . . . . . . . . Repair Stations . | . . . . . . . . . Recycling Units . | . . . . . . . . . Scanalyzers . | . . . . . . . . . Garrison Access . | . . . . . . . . . Data Cores Recovered . | . . . . . . . . . Used . | . . . . . . . . . Hacking Detections 6 | . 1 . . . . . 4 1 Full Trace Events . | . . . . . . . . . Feedback Events . | . . . . . . . . . Feedback Blocked . | . . . . . . . . . Robot Schematics Acquired . | . . . . . . . . . Robots Built . | . . . . . . . . . Matter . | . . . . . . . . . Time . | . . . . . . . . . Total Robot Build Rating . | . . . . . . . . . Part Schematics Acquired 1 | . . . . . 1 . . . Parts Built . | . . . . . . . . . Matter . | . . . . . . . . . Time . | . . . . . . . . . Total Part Build Rating . | . . . . . . . . . Parts Repaired . | . . . . . . . . . Time . | . . . . . . . . . Parts Recycled . | . . . . . . . . . Recycled Matter . | . . . . . . . . . Retrieved Matter . | . . . . . . . . . Retrieved Components . | . . . . . . . . . Parts Scanalyzed 1 | . . . . . 1 . . . Part Schematics Acquired 1 | . . . . . 1 . . . Parts Damaged . | . . . . . . . . . Bothacking | -11 -10 -10 -10 -9 -8 -8 -8 -7 ------------ Run | Scr Mat Min Exi Min Mat Gar Mat Fac Used RIF Installer 1 | . . . . . . 1 . . Robots Hacked . | . . . . . . . . . Non-combat . | . . . . . . . . . Combat . | . . . . . . . . . Robot Hacks Applied . | . . . . . . . . . Relay Couplers Released . | . . . . . . . . . Robots Rewired . | . . . . . . . . . Allies Hacked . | . . . . . . . . . Hacks Repelled . | . . . . . . . . . Allies | -11 -10 -10 -10 -9 -8 -8 -8 -7 -------- Run | Scr Mat Min Exi Min Mat Gar Mat Fac Total Allies . | . . . . . . . . . Largest Group . | . . . . . . . . . Highest-Rated Group . | . . . . . . . . . Highest-Rated Ally . | . . . . . . . . . Total Orders . | . . . . . . . . . Ally Attacks . | . . . . . . . . . Total Damage . | . . . . . . . . . Kills . | . . . . . . . . . Allies Corrupted . | . . . . . . . . . Allies Melted . | . . . . . . . . . Intel | -11 -10 -10 -10 -9 -8 -8 -8 -7 ------- Run | Scr Mat Min Exi Min Mat Gar Mat Fac Robot Analysis Total . | . . . . . . . . . Derelict Logs Recovered 2 | . . 1 . 1 . . . . Drone Launches . | . . . . . . . . . Drone Recoveries . | . . . . . . . . . Exploration | -11 -10 -10 -10 -9 -8 -8 -8 -7 ------------- Run | Scr Mat Min Exi Min Mat Gar Mat Fac Turns Passed 5390 | 26 275 193 311 492 1197 1254 1349 293 Spaces Moved 3736 | 37 195 179 324 515 750 629 942 165 Core 45 | 37 8 . . . . . . . Treads 464 | . . . . . 298 166 . . Legs 1703 | . 133 . . . . 463 942 165 Wheels 1524 | . 54 179 324 515 452 . . . Hover . | . . . . . . . . . Flight . | . . . . . . . . . Fastest Speed 50 | 50 50 90 90 90 90 150 120 120 Average Speed 118 | 50 109 90 90 90 117 168 120 120 Slowest Speed 205 | 50 150 90 90 90 175 205 150 120 Overloaded Moves . | . . . . . . . . . Propulsion Burnouts . | . . . . . . . . . Robots Hopped . | . . . . . . . . . Cave-ins Triggered . | . . . . . . . . . Exploration Rate (%) 48 | 4 36 33 68 84 61 79 69 5 Regions Visited 8 Branch Regions 3 Pre-discovered Areas 1 | . . 1 . . . . . . Known Exits Taken 2 | . . . . . 1 . 1 . Unknown Exits Taken 5 | 1 1 1 1 1 . . . . Scrap Searched 4 | . . 2 . 2 . . . . Spaces Dug . | . . . . . . . . . Terrain Destroyed 395 | . 35 . . 96 168 23 72 1 Melee . | . . . . . . . . . Projectile 9 | . . . . . 1 6 1 1 AOE 386 | . 35 . . 96 167 17 71 . Actions | -11 -10 -10 -10 -9 -8 -8 -8 -7 --------- Run | Scr Mat Min Exi Min Mat Gar Mat Fac Total 4334 | 44 243 198 347 532 959 738 1066 207 Wait 99 | . 6 12 . 8 29 17 27 . Move 3729 | 36 194 178 323 514 750 628 941 165 Hop . | . . . . . . . . . Pick Up 116 | 6 13 . 15 3 55 6 12 6 Fast Attach 9 | . 4 1 . . . 1 3 . Attach 34 | 2 7 . 1 . 13 6 1 4 Detach 5 | . 1 . . . 3 . 1 . Swap 34 | . 1 . . 2 13 10 6 2 Drop 84 | . 9 1 8 . 36 2 25 3 Fire 197 | . 8 6 . 5 60 41 50 27 Melee . | . . . . . . . . . Ram . | . . . . . . . . . Kick . | . . . . . . . . . Crush . | . . . . . . . . . Escape Stasis 27 | . . . . . . 27 . . Rewire . | . . . . . . . . . Trap . | . . . . . . . . . Miscellaneous . | . . . . . . . . . Route ------- -11/Scrapyard -10/Materials (discovered 2 exits: [*Mat] / [*Min]) -10/Mines -10/Exiles -9/Mines -8/Materials (discovered 4 exits: *Fac x3 / Gar) -8/Garrison (discovered 3 exits: *Mat x3) -8/Materials (discovered 3 exits: *Fac x3) -7/Factory History --------- Turn | Location | Event 9 | -11/Scrapyard | Discovered new exit (range 15) 27 | -11/Scrapyard | Entered Materials 175 | -10/Materials | Discovered new exit (range 3) 219 | -10/Materials | Discovered new exit (range 17) 302 | -10/Materials | Entered Mines 303 | -10/Mines | Build established: Mutant 354 | -10/Mines | Learned location of Storage (-9) 491 | -10/Mines | Deemed a non-threat by the Exiles lab entrance 491 | -10/Mines | Discovered new exit (range 5) 495 | -10/Mines | Entered Exiles 517 | -10/Exiles | Met 8R-AWN 532 | -10/Exiles | Met EX-HEX 598 | -10/Exiles | Met EX-BIN 609 | -10/Exiles | Aligned with FarCom system 610 | -10/Exiles | Given EX-Vault access code 631 | -10/Exiles | Opened EX-Vault 636 | -10/Exiles | Found Prototype Storage 639 | -10/Exiles | Identified Lightpack 2.0 668 | -10/Exiles | Warned to stay clear of 0b10 Research branches 734 | -10/Exiles | Met EX-DEC 792 | -10/Exiles | Discovered new exit (range 15) 806 | -10/Exiles | Left Exiles lab with Lightpack 2.0 806 | -10/Exiles | Entered Mines 911 | -9/Mines | Received a Rocket Launcher from a helpful Derelict 925 | -9/Mines | Learned location of 1 exit from Materials 945 | -9/Mines | Build established: Hauler-Mutant 1295 | -9/Mines | Discovered new exit (range 5) 1298 | -9/Mines | Entered Materials 1298 | -8/Materials | Evolved 4 slots: Propulsion x2, Utility x2 1299 | -8/Materials | Identified exit to Factory 1513 | -8/Materials | Discovered exit to Factory (range 5) 1917 | -8/Materials | Discovered exit to Factory (range 5) 2304 | -8/Materials | Garrison activated, responded to threat 2459 | -8/Materials | Garrison activated, responded to threat 2495 | -8/Materials | Identified exit to Garrison 2495 | -8/Materials | Entered Garrison 2600 | -8/Garrison | Triggered checkpoint 2762 | -8/Garrison | Triggered checkpoint 2776 | -8/Garrison | Triggered checkpoint 2846 | -8/Garrison | Lost 6 parts (3n3w) 3081 | -8/Garrison | Discovered new exit (range 13) 3170 | -8/Garrison | Triggered checkpoint 3347 | -8/Garrison | Discovered new exit (range 14) 3422 | -8/Garrison | Triggered checkpoint 3719 | -8/Garrison | Discovered new exit (range 9) 3743 | -8/Garrison | Installed Relay Interface Framework 3749 | -8/Garrison | Entered Materials 3980 | -8/Materials | Core integrity fell below 50% 4022 | -8/Materials | Discovered exit to Factory (range 9) 4145 | -8/Materials | Discovered exit to Factory (range 11) 5020 | -8/Materials | Discovered exit to Factory (range 10) 5098 | -8/Materials | Entered Factory 5098 | -7/Factory | Evolved 2 slots: Utility x2 5262 | -7/Factory | Assembled infested ambush trap array 5391 | -7/Factory | Self-destructed Last Messages --------------- 05381_ S-27 Virus destroyed. 05381_ U-05 Engineer lays Concrete. 05383_ K-01 Serf collects debris. 05383_ U-05 Engineer lays Concrete. 05383_ Slug penetrates S-27 Virus. 05383_ U-05 Engineer lays Concrete. 05384_ U-05 Engineer builds a Wall. 05384_ as-25957 sneak attacks. 05386_ U-05 Engineer destroyed. 05386_ U-05 Engineer lays Concrete. 05386_ Wheel severed. 05387_ ALERT: Construction progress impeded, dispatching reinforcements to local area. 05387_ U-05 Engineer builds a Wall. 05388_ Gauss Rifle destroyed. 05388_ U-05 Engineer lays Concrete. 05389_ S-27 Virus suffers critical hit. 05389_ Destroyed Lgt. Nuclear Core. 05390_ The unstable cave ceiling collapses. 05390_ U-05 Engineer builds a Wall. Map ----- +----------------------------------------------------+ | ??? ?"???????# = """ # # | | #????????????# # # | | ???? ??????? # """ """ # # | | ???????? ????# """ """ # # | | ?????"???????# """ """ # # | | ?????????????# # ! # ** | | ???????????" # # # *! | | ?? ??????????# # # * | | ?? ??????????# # # | | ???########+#####+#######+######/#############/### | | % ! ^ | | =%! ^ | | | ^ | | =! %%% ^ ^ | | * ^ """ """ " | | ####+#############+################# ^ """" """ " | | ?????????#??# % ###????#?## """" """ " | | ?????"???#??# #?######### """" " | | ???????????## ##? ## """" " | | ???????? ?#?# ### % """" " | | ????????????# # ### | | ??????????#?# #?# | | ????????????# % #?# ######### | | ??????????#?# # # =%! ### ##??????# | | ????????????# # !! ## #???????# | | ????????????# @ u=%= #?# #?##??#?# | | ????????????# #ss%* #?# #????#??# | | ????????????# # u%== #?# #???????# | | ????????????########## # ##g##### #???????# | | ????????????????????#### # ##g#???# #????#??# | | ???????????????#???#???#######g##??# #??????## | | ????????????????????????#????#g##??# #???????# | | ??????????????????#??????????# ##??# #???#???? | | ?????????????????????????????# #??## #???????? | | ????????"????????????????????#/#???# #?????#?? | | ???????????????w???????? ???? ???# #???????? | | ????????????????????????????? ??? ???????? | | ????????????????????????????? ??? ???????? | | ????????????????????????????? ?? ???????? | | ????????????????????????????? ?? ???????? | | ????????????????????????????? ???? Y ????????? | | ????????????????????????? ?? ???? ????????? | | ????????????????????????????? ??? ????????????? | | ????????????????????? ?? ???? ?????????????????? | | ????????????????????????????? ?????????????????? | | ???????????????????????? ???? ?????????????????? | | ????????????????????????????? ?????????????????? | | ?????????????????????????????#+#?????????????????? | | ?????????????????????????????????????????????????? | | ?????????????????????????????????????????????????? | +----------------------------------------------------+ Best States ------------- Heat Dissipation 34 Energy Generation 16 Energy Capacity 290 Matter Stores 300 Matter Capacity 450 Sight Range 22 Terrain Scan Range 20 Terrain Scan Density 10 Jamming Range 8 Armor Coverage 225 Resistance: KI 20 Propulsion Shielding 66 Utility Shielding 66 Evasion (%) 50 Targeting Accuracy 8 Recoil Reduction 3 Item Schematics ----------------- Adv. Treads | -8/Materials | Scanalyzed Robot Schematics ------------------ None Fabricated ------------ Nothing Alien Tech Used ----------------- None Achievements -------------- None Challenges ------------ None Game ------ Seed TerrainTargetingShifter Manual? 0 Play Time 01:00:48 Cumulative 96.7 hours Start 2019.11.03 @ 04:30:38 End 2019.11.03 @ 05:29:22 Sessions 1 Manual Loads 0 Difficulty Rogue Special Mode None Game No. 156 Rogue 156 Adventurer 0 Explorer 0 Win Type - Total 0 Types 0/0/0/0/0/0/0 Lore% 31 Gallery% 45 Achievement% 33 Wizard Run 0 Options --------- ASCII 0 Keyboard 0 Movement Mouse Keybinds 0 Fullscreen 1 Font 18/SmallcapsGlow Map View 76x50 Tactical HUD 1 Map Filters NONE Filters NONE Steam 1 RUN: 9ea6dcba-11b8-49e1-9f9d-26ba2a3b3252